Cogmind - Beta 13 X1 @@@ ROGUE MODE // 2023.08.02 @ 23:12:50 Player: Exp. Geonium Core Result: Destroyed by IJ-HKO(R) with Subdweller Machine Gun Performance ------------- Evolutions (0) 0 Regions Visited (2) 400 Robots Destroyed (17) 85 Value Destroyed (473) 473 Prototype IDs (10) 200 Alien Tech Used (0) 0 Bonus (0) 0 TOTAL SCORE: 1158 Bonus ------- None Cogmind --------- Core Integrity 0/250 Matter 299/300 Energy 20/125 System Corruption 0% Temperature Cool (0) Movement Treading (160) Location -10/Subcaves Parts ------- > --- POWER (1+1) ------ Light Ion Engine > --- PROPULSION (2) --- Light Treads Wheel > --- UTILITY (2) ------ Improved Heat Sink Small Storage Unit > --- WEAPON (2) ------- Powered Cannon > --- INVENTORY (8) ---- Wheel Small Laser Light Cannon Grenade Launcher Multitool Hammer Hammer Peak State ------------ > --- POWER ------------ Light Ion Engine > --- PROPULSION ------- Light Treads Wheel > --- UTILITY ---------- Improved Heat Sink Small Storage Unit > --- WEAPON ----------- Powered Cannon > --- INVENTORY -------- Wheel Small Laser Light Cannon Grenade Launcher Multitool Hammer Hammer [Rating: 21] Favorites ----------- Power Ion Engine Engine Ion Engine Propulsion Light Treads Treads Light Treads Leg Aluminum Leg Wheel Wheel Utility Small Storage Unit Device Improved Heat Sink Storage Small Storage Unit Weapon Assault Rifle Energy Gun Small Laser Energy Cannon Powered Cannon Ballistic Gun Assault Rifle Impact Weapon Hammer Build | -11 -10 -10 ------- Run | Jun Mat Sub Slots Evolved . | . . . Power . | . . . Propulsion . | . . . Utility . | . . . Weapon . | . . . Parts Attached 12 | . 6 6 Power 2 | . 1 1 Engine 2 | . 1 1 Core . | . . . Reactor . | . . . Propulsion 4 | . 2 2 Treads 3 | . 2 1 Leg . | . . . Wheel 1 | . . 1 Hover . | . . . Flight . | . . . Utility 1 | . 1 . Device 1 | . 1 . Storage . | . . . Processor . | . . . Hackware . | . . . Protection . | . . . Artifact . | . . . Weapon 5 | . 2 3 Energy Gun . | . . . Energy Cannon 1 | . . 1 Ballistic Gun 2 | . 1 1 Ballistic Cannon . | . . . Launcher . | . . . Special Weapon . | . . . Impact Weapon 2 | . 1 1 Slashing Weapon . | . . . Piercing Weapon . | . . . Special Melee Weapon . | . . . Unidentified Prototypes . | . . . Parts Lost 4 | . . 4 Power 1 | . . 1 Propulsion 2 | . . 2 Utility . | . . . Weapon 1 | . . 1 Highest Loss Streak 3 | . . 3 To Critical Strikes . | . . . Average Slot Usage (%) 89 | . 95 81 Engine 10 | . 14 6 Treads 21 | . 17 26 Leg 5 | . 10 . Device 11 | . 10 13 Storage 13 | . 14 13 Energy Gun 8 | . 15 . Energy Cannon 1 | . . 2 Ballistic Gun 9 | . 8 11 Impact Weapon 5 | . 4 6 Naked Turns . | . . . Heaviest Build 18 | 11 15 18 Greatest Support 40 | 20 40 40 Greatest Overweight (x) 1 | . . 1 Average Overweight (x) . | . . . Largest Inventory Capacity 8 | . 8 8 Average Capacity 8 | . 8 8 Most Carried 8 | . 8 8 Average Carried 7 | . 6 7 Final Capacity 8 | 8 8 8 Final Carried 8 | 6 8 7 Class Distribution -------------------- 100% | Mutant Dominant Class ---------------- Mutant | -10/Materials Mutant | -10/Subcaves Resources | -11 -10 -10 ----------- Run | Jun Mat Sub Matter Collected 349 | 141 121 87 Remotely . | . . . Salvage Created 527 | . 441 86 Parts 30 | . 22 8 Haulers Intercepted . | . . . Recyclers Shooed . | . . . Parts Field Recycled . | . . . Retrieved Matter . | . . . Parts Self-Destructed 7 | . . 7 Prevented . | . . . Kills | -11 -10 -10 ------- Run | Jun Mat Sub Combat Hostiles Destroyed 14 | . 10 4 Melee 2 | . 2 . Guns 10 | . 6 4 AOE 2 | . 2 . Classes Destroyed 6 | . 3 3 Worker 2 | . 2 . Builder 1 | . 1 . Swarmer 3 | . . 3 Grunt 10 | . 10 . Artisan 1 | . . 1 Subdweller 1 | . . 1 Best Kill Streak 6 | . 6 3 Combat Bots Only 5 | . 5 3 Max Kills in Single Turn 2 | . 2 1 Gunslinging . | . . . Exploded 1 | . 1 . Melee 1 | . 1 . Uniques/NPCs Destroyed . | . . . Combat | -11 -10 -10 -------- Run | Jun Mat Sub Damage Taken 1297 | . 394 903 Core 255 | . 69 186 Absorbed by Shields . | . . . Core Remaining (%) 100 | 100 . . Volleys Fired 53 | . 22 31 Largest 2 | . 2 2 Hottest 80 | . 80 40 Shots Fired 81 | . 44 37 Gun 73 | . 44 29 Cannon 8 | . . 8 Launcher . | . . . Special . | . . . Kinetic 37 | . 8 29 Thermal 30 | . 22 8 Explosive . | . . . Electromagnetic 14 | . 14 . Robot Hit Streak 10 | . 10 6 Robot Miss Streak 3 | . 3 2 Penetration Max . | . . . Secondary Targets . | . . . Shots Hit Robots 58 | . 35 23 Core Hits 28 | . 18 10 Critical Kills . | . . . Critical Parts Destroyed 1 | . 1 . Critical Strikes 1 | . 1 . Smash 1 | . 1 . Melee Attacks 46 | . 38 8 Impact 46 | . 38 8 Slashing . | . . . Piercing . | . . . Sneak Attacks 2 | . 2 . Combat Hostiles . | . . . Follow-up Attacks . | . . . Damage Inflicted 1236 | . 873 363 Guns 505 | . 316 189 Cannons 153 | . . 153 Explosions 245 | . 245 . Melee 294 | . 294 . Ramming 39 | . 18 21 Kinetic 229 | . 40 189 Thermal 528 | . 375 153 Explosive . | . . . Electromagnetic 146 | . 146 . Impact 294 | . 294 . Slashing . | . . . Piercing . | . . . Highest Corruption . | . . . Average Corruption . | . . . Corruption Purged . | . . . Corruption Blocked . | . . . Overload Shots . | . . . Overflow Damage 86 | . 86 . Projectiles . | . . . Explosions . | . . . Melee 86 | . 86 . Knockbacks 5 | . 4 1 Impact 4 | . 3 1 Kinetic . | . . . Secondary 1 | . 1 . Self-Inflicted Damage 51 | . 51 . Shots 1 | . 1 . Rammed 19 | . 6 13 Targets Rammed 19 | . 6 13 Kicked . | . . . Crushed . | . . . Highest Temperature 45 | . 45 . Average Temperature 22 | . 22 . Received Heat Transfer 252 | . 216 36 Siege Activations . | . . . Robots Corrupted . | . . . Combat Hostiles . | . . . Parts Fried 2 | . 2 . Impact Corruptions 5 | . 5 . Robots Melted . | . . . Combat Hostiles . | . . . Parts Melted . | . . . Heat Transferred 550 | . 550 . Parts Sabotaged . | . . . Parts Stolen . | . . . Parts Stripped . | . . . Power Chain Reactions 2 | . 2 . Missiles Intercepted . | . . . Alert | -11 -10 -10 ------- Run | Jun Mat Sub Peak Influence 239 | . 239 . Initial . | . . . Average 92 | . 92 . Maximum Alert Level 1 | . 1 . Low Security (%) 95 | . 95 . Level 1 4 | . 4 . Level 2 . | . . . Level 3 . | . . . Level 4 . | . . . Level 5 . | . . . High Security . | . . . Max Security . | . . . Squads Dispatched 2 | . 2 . Investigation 1 | . 1 . Extermination . | . . . Reinforcement 1 | . 1 . Assault . | . . . Garrison . | . . . Intercept . | . . . Searches Triggered . | . . . Construction Impeded . | . . . Haulers Reinforced . | . . . Active Scanning Responses . | . . . Cargo Convoy Interrupts . | . . . Stealth | -11 -10 -10 --------- Run | Jun Mat Sub Distress Signals 1 | . 1 . Communications Jammed . | . . . Distress Signals . | . . . Times Spotted 35 | . 22 13 Peak Tracking Total 6 | . 5 6 Tactical Retreats 2 | . 1 1 Traps | -11 -10 -10 ------- Run | Jun Mat Sub Traps Triggered 2 | . 2 . Indirectly . | . . . Trap Hack Attempts . | . . . Triggered . | . . . Disarmed . | . . . Reprogrammed . | . . . Reused . | . . . Traps Extracted . | . . . Installed . | . . . Triggered . | . . . Machines | -11 -10 -10 ---------- Run | Jun Mat Sub Machines Disabled 4 | . 3 1 Max in Single Turn 1 | . 1 1 Machines Repaired . | . . . Machines Sabotaged . | . . . Overloaded Fab Kills . | . . . Hacking | -11 -10 -10 --------- Run | Jun Mat Sub Machines Accessed 2 | . 1 1 Terminals 1 | . 1 . Fabricators . | . . . Repair Stations . | . . . Recycling Units . | . . . Scanalyzers . | . . . Garrison Access . | . . . Total Hacks 12 | . 3 9 Successful 10 | . 1 9 Failed 2 | . 2 . Catastrophic . | . . . Database Lockouts . | . . . Manual 2 | . 2 . Terminals 3 | . 3 . Fabricators . | . . . Repair Stations . | . . . Recycling Units . | . . . Scanalyzers . | . . . Garrison Access . | . . . Terminal Hacks 10 | . 1 9 Record 8 | . . 8 Zone Layout 1 | . 1 . Derelict Proto ID Bank 1 | . . 1 Fabricator Hacks . | . . . Repair Station Hacks . | . . . Recycling Unit Hacks . | . . . Scanalyzer . | . . . Garrison Access Hacks . | . . . Unauthorized Hacks . | . . . Terminals . | . . . Fabricators . | . . . Repair Stations . | . . . Recycling Units . | . . . Scanalyzers . | . . . Garrison Access . | . . . Data Cores Recovered . | . . . Used . | . . . Hacking Detections 1 | . 1 . Full Trace Events . | . . . Feedback Events . | . . . Feedback Blocked . | . . . Robot Schematics Acquired . | . . . Robots Built . | . . . Authchips . | . . . Time . | . . . Total Robot Build Rating . | . . . Part Schematics Acquired . | . . . Parts Built . | . . . Authchips . | . . . Time . | . . . Total Part Build Rating . | . . . Parts Repaired . | . . . Time . | . . . Parts Recycled . | . . . Recycled Matter . | . . . Retrieved Matter . | . . . Retrieved Components . | . . . Parts Scanalyzed . | . . . Part Schematics Acquired . | . . . Parts Damaged . | . . . Bothacking | -11 -10 -10 ------------ Run | Jun Mat Sub Used RIF Installer . | . . . Robots Hacked . | . . . Non-combat . | . . . Combat . | . . . Robot Hacks Applied . | . . . Relay Couplers Released . | . . . Fabnet Peak Effective % . | . . . Robots Rewired . | . . . Allies Hacked . | . . . Hacks Repelled . | . . . Allies | -11 -10 -10 -------- Run | Jun Mat Sub Total Allies . | . . . Largest Group . | . . . Highest-Rated Group . | . . . Highest-Rated Ally . | . . . Total Orders . | . . . Ally Attacks . | . . . Total Damage . | . . . Kills . | . . . Allies Corrupted . | . . . Allies Melted . | . . . Intel | -11 -10 -10 ------- Run | Jun Mat Sub Robot Analysis Total . | . . . Derelict Logs Recovered 1 | . . 1 Drone Launches . | . . . Drone Recoveries . | . . . Exploration | -11 -10 -10 ------------- Run | Jun Mat Sub Turns Passed 2447 | . 1372 1075 Spaces Moved 1248 | 1 673 574 Core . | . . . Treads 1002 | . 441 561 Legs 233 | 1 232 . Wheels 13 | . . 13 Hover . | . . . Flight . | . . . Fastest Speed 95 | 120 120 95 Average Speed 151 | 120 146 158 Slowest Speed 160 | 120 160 160 Overloaded Moves . | . . . Propulsion Burnouts . | . . . Robots Hopped . | . . . Cave-ins Triggered . | . . . Exploration Rate (%) 41 | 2 93 30 Regions Visited 2 Branch Regions 1 Pre-discovered Areas 1 | . . 1 Known Exits Taken . | . . . Unknown Exits Taken 2 | 1 1 . Scrap Searched . | . . . Spaces Dug 20 | . 18 2 Terrain Destroyed 23 | . 20 3 Melee 20 | . 18 2 Projectile 1 | . . 1 AOE 2 | . 2 . Terrain Rammed . | . . . Walls Destroyed . | . . . Machines Disabled . | . . . Actions | -11 -10 -10 --------- Run | Jun Mat Sub Total 1636 | . 948 688 Wait 243 | . 194 49 Move 1246 | . 672 574 Hop . | . . . Pick Up 9 | . 5 4 Fast Attach 4 | . 3 1 Attach 6 | . 2 4 Detach . | . . . Swap 2 | . 1 1 Drop 8 | . 5 3 Fire 53 | . 22 31 Melee 46 | . 38 8 Ram . | . . . Kick . | . . . Crush 19 | . 6 13 Escape Stasis . | . . . Rewire . | . . . Trap . | . . . Miscellaneous . | . . . Route ------- -11/Junkyard -10/Materials (discovered 6 exits: [*Mat x3] / [*Min x2] / *Sub) -10/Subcaves (discovered 1 exit: [*Rec]) History --------- Turn | Location | Event 1 | -11/Junkyard | Discovered new exit (range 0) 1 | -11/Junkyard | Entered Materials 305 | -10/Materials | Build established: Mutant 421 | -10/Materials | Discovered new exit (range 16) 624 | -10/Materials | Discovered new exit (range 16) 637 | -10/Materials | Discovered new exit (range 16) 781 | -10/Materials | Discovered new exit (range 7) 910 | -10/Materials | Discovered new exit (range 13) 1362 | -10/Materials | Discovered new exit (range 8) 1373 | -10/Materials | Entered Subcaves 1562 | -10/Subcaves | Learned location of Zion (-6) 1618 | -10/Subcaves | A swath of the cavern ceiling suddenly collapsed 1870 | -10/Subcaves | Lost 3 parts (1p1n1w) 1920 | -10/Subcaves | Discovered new exit (range 15) 1928 | -10/Subcaves | Core integrity fell below 50% 2171 | -10/Subcaves | Visited 4L-MR0's lab 2186 | -10/Subcaves | Found Powered Cannon 2203 | -10/Subcaves | Attached Powered Cannon, gained temporary slot: Power 2393 | -10/Subcaves | Ambushed by angry Subdweller bent on revenge 2421 | -10/Subcaves | Core integrity fell below 20% 2448 | -10/Subcaves | Destroyed by IJ-HKO(R) with Subdweller Machine Gun Last Messages --------------- 02206_ Acquired Lgt. Assault Rifle. 02300_ 91-D7M(u) tweaks Twisted Machinery. 02341_ 91-D7M(u) builds Twisted Machinery. 02374_ 91-D7M(u) tweaks Twisted Machinery. 02389_ 91-D7M(u) builds Twisted Machinery. 02392_ 91-D7M(u) cries out in pain. 02392_ 91-D7M(u) destroyed. 02393_ Dropped Lgt. Assault Rifle. 02394_ IJ-HKO(R): "WEHOME!" 02394_ Acquired Multitool. 02400_ Slammed into IJ-HKO(R). 02401_ Acquired 13 matter. 02401_ Slammed into IJ-HKO(R). 02401_ IJ-HKO(R) knocked back. 02403_ Slammed into IJ-HKO(R). 02416_ Lgt. Treads destroyed. 02417_ Slammed into IJ-HKO(R). 02431_ Acquired 10 matter. 02443_ Acquired Lgt. Ion Engine. 02445_ Acquired 9 matter. Map ----- +----------------------------------------------------+ | ?????????????????## "#?????????????????????? | | ?????????????????#" ## ##?????????????????????? | | ???????????????###" "############???????????????? | | ???####????##### " ### ## ###########?????? | | ???# ##???# # ###???? | | ???# ##??# ####### ## #???? | | ???## #### #????# ## ##????? | | ????# ## ###### ##### ####??# | | ????## ## ##??##### # #### | | ?????### ## ###????# # | | ???????## ###?# ## | | ????????#### ## ### | | ???????????# ## ### #?# ## | | ???????????# #### ##?### ## ### | | ???????????###??# ###?##?##### ### ##?# | | ????????????????###??## ####### ### #??# | | ?????????????????????# ## ## ??# | | ?????????????????????## ## #### | | ??????????????????????#""""" ### ##### # | | ??????????????????????##"### ###?##????# # | | ????????????????????######## ##?????????# | | ???????????????????## ""##"" #?????????## | | ???????????????????# """ ##????????# | | ???????????????????## """ #???????## | | ????????????????####"""""#"" # #???????# # | | ???????????????## %""""#;@# ## #?????#### ## | | ??????????????## """%%R%" #?# ## ## # # #? | | ??????????????# "#[=####?# ## | | ??????????????# #####???? # | | ??????????????# ######????????? ## # # # | | ??????????????###???????????????###??#??##### | | ????????????????????????????????????????????# | | ????????????????????????????????????????????# | | ????????????????????????????????????????????# | | ????????????????????????????????????????????# | | ????????????????????????????????????????????## ## | | ???????????????????????????????????????########### | | ???????????????????????????????????????# #???# | | ???????????????????????????????????????# ##??? | | ???????????????????????????????????????# #### | | ???????????????????????????????????????# ## | | ???????????????????????????????????????# | | ???????????????????????????????????????# | | ???????????????????????????????????????## # | | ????????????????????????????????????????# " | | ????????????????????????????????????????### | | ?????????########????????????????????????# | | ?????????# % ###???????####????######### % | | ????????## ######### ###### # | | ### % ## | +----------------------------------------------------+ Best States ------------- Heat Dissipation 39 Energy Generation 10 Energy Capacity 250 Matter Stores 300 Matter Capacity 300 Sight Range 16 Terrain Scan Density 10 Evasion (%) 55 Recoil Reduction 2 Item Schematics ----------------- None Robot Schematics ------------------ None Fabricated ------------ Nothing Alien Tech Used ----------------- None Achievements -------------- None Challenges ------------ None Game ------ Seed RelayFlightLog Manual? 0 Play Time 00:12:21 Cumulative 443.1 hours Start 2023.08.02 @ 22:59:55 End 2023.08.02 @ 23:12:50 Sessions 1 Manual Loads 0 Difficulty Rogue Special Mode None Game No. 489 Rogue 489 Adventurer 0 Explorer 0 Win Type - Total 12 Types 8/0/3/1/0/0/0/0/0 Lore% 79 Gallery% 88 Achievement% 80 Wizard Run 0 Options --------- ASCII 0 Keyboard 0 Movement Numpad Keybinds 0 Fullscreen 1 Font 18/Terminus Map View 76x50 Tactical HUD 1 Map Filters NONE Filters NONE Steam 1 RUN: d2322f67-495c-46fe-aa7f-33c76be44074